[Event "44th Chess Olympiad Open 2022"]
[Site "Chennai"]
[Date "2022.08.03"]
[Round "6.5"]
[White "Duda, Jan-Krzysztof"]
[Black "Indjic, Aleksandar"]
[Result "1/2-1/2"]
[WhiteElo "2750"]
[BlackElo "2620"]
[Annotator "TA"]
[PlyCount "137"]
[EventDate "2022.??.??"]
[TimeControl "60"]

{[%evp 23,137,38,39,48,66,60,110,31,50,35,39,25,29,21,22,31,41,17,35,0,17,16,
15,-25,-25,-31,-33,-29,-22,-37,-34,-26,-33,-149,-156,-152,-85,-87,-87,-78,-78,
-75,-82,-82,-46,-72,-72,-72,-69,-84,-69,-69,-69,-76,-62,-87,-46,-97,-97,-95,
-95,-95,-95,-95,-95,-95,-95,-95,-93,-95,-95,-89,-89,-234,-234,-204,0,-93,0,0,0,
0,0,0,0,0,0,0,0,0,0,0,0,0,0,0,0,0,0,0,0,0,0,0,0,0,0,0,0,0,0,0,0,0,0,0]} 1. d4 {
[%emt 0:00:04]} Nf6 {[%emt 0:00:44]} 2. c4 {[%emt 0:00:07]} e6 {[%emt 0:00:07]}
3. Nf3 {[%emt 0:00:06]} c5 {[%emt 0:00:46]} 4. d5 {[%emt 0:00:08]} d6 {[%emt 0:
00:00]} 5. Nc3 {[%emt 0:00:07]} exd5 {[%emt 0:00:06]} 6. cxd5 {[%emt 0:00:05]}
g6 {[%emt 0:00:10]} 7. Nd2 {[%emt 0:00:06]} Bg7 {[%emt 0:00:53]} 8. e4 {
[%emt 0:00:08]} O-O {[%emt 0:00:30]} 9. Be2 {[%emt 0:00:06]} Re8 {[%emt 0:00:
00]} 10. O-O {[%emt 0:00:29]} Nbd7 {[%emt 0:02:12]} 11. a4 {[%emt 0:00:39]} a6
{[%emt 0:00:05] Nowadays more popular than 11...Ne5.} 12. Ra3 {[%emt 0:09:31]}
Rb8 {[%emt 0:17:57]} 13. a5 {[%emt 0:08:07] A77: Modern Benoni: Classical: 9...
Re8 10 Nd2:10...a6 and 10...Nbd7.} h6 {[%emt 0:05:14]} 14. h3 {[%emt 0:03:30]}
g5 {[%emt 0:00:46] [#]} ({Better is} 14... Ra8 $14) 15. Nc4 $146 {[%emt 0:00:
00]} (15. f4 $16) ({Predecessor:} 15. f4 gxf4 16. Rxf4 Ne5 17. Rf2 Ng6 18. Qf1
Qe7 19. Nc4 Bd7 20. Bxh6 Bxh6 21. Rxf6 {1-0 (29) Kashlinskaya,A (2494)-Pigusov,
E (2555) Chess.com INT 2020}) 15... Nxe4 $14 {[%emt 0:01:08]} 16. Nxe4 {
[%emt 0:00:05] Remove Defender} Rxe4 {[%emt 0:00:08]} 17. Nxd6 {[%emt 0:00:05]}
Rd4 {[%emt 0:00:34]} 18. Qc2 {[%emt 0:00:06]} Nf6 $1 {[%emt 0:00:00]} 19. Nxc8
{[%emt 0:01:52]} Rxc8 {[%emt 0:00:10]} 20. Be3 {[%emt 0:01:35]} (20. Bc4 {
looks sharper.} Nxd5 21. Rf3 Qe8 22. Be3) 20... Rxd5 {[%emt 0:00:00]} 21. f4 {
[%emt 0:08:31] fxg5 is the strong threat.} (21. Bf3 $5 {[%cal Rf3d5]}) 21...
gxf4 {[%emt 0:09:01]} 22. Bxf4 {[%emt 0:01:38]} Nh5 {[%emt 0:00:00]} 23. Bh2 {
[%emt 0:26:29] And now Bc4 would win. White has compensation. A strong pair of
Bishops.} Rd2 {[%emt 0:10:25]} 24. Qc4 {[%emt 0:00:00]} Qd4+ {[%emt 0:01:54]}
25. Kh1 {[%emt 0:00:16]} Nf6 $1 $36 {[%emt 0:00:00] Black fights for an
advantage.} ({But not} 25... Qxc4 26. Bxc4 Nf6 27. Be5 $16) 26. Rb3 {[%emt 0:
01:30] Chess con chili.} Qe4 {[%emt 0:04:17]} 27. Qxe4 {[%emt 0:06:40]} Nxe4 {
[%emt 0:00:10]} 28. Re3 {[%emt 0:02:20]} (28. Bh5 $15) 28... Re8 $17 {[%emt 0:
02:22][%cal Ye4f2] Hoping for ...Nf2+!} 29. Bh5 {[%emt 0:05:19]} Rf2 {[%emt 0:
07:15]} (29... Re7 $142 30. Ref3 Rdd7) 30. Rfe1 {[%emt 0:03:57] [#]} Bd4 $1 {
[%emt 0:00:11]} 31. Rxe4 {[%emt 0:00:31]} Rxe4 {[%emt 0:00:06]} 32. Rxe4 {
[%emt 0:00:04]} Rf1+ {[%emt 0:00:06]} 33. Bg1 {[%emt 0:00:04]} Rxg1+ {[%emt 0:
00:08] Endgame KRB-KRB} 34. Kh2 {[%emt 0:00:04]} Rb1 {[%emt 0:00:15]} 35. Re8+
{[%emt 0:03:03]} Kg7 {[%emt 0:00:00]} 36. Re7 {[%emt 0:00:04][%csl Yb7,Yf7]}
Rxb2 {[%emt 0:00:10]} 37. Rxf7+ {[%emt 0:00:04]} Kg8 {[%emt 0:00:29] aiming
for ...c4.} 38. Kg3 {[%emt 0:03:00]} c4 {[%emt 0:02:07] Threatens to win with .
..c3.} 39. Kf3 {[%emt 0:00:04]} Rb5 {[%emt 0:01:44]} 40. Rf4 {[%emt 0:02:30]} (
40. Bg6 $1 $15) 40... Rxh5 {[%emt 0:00:00]} 41. Rxd4 {[%emt 0:01:55]} Rxa5 {
[%emt 0:00:37] Strongly threatening ... b5.} 42. Rxc4 {[%emt 0:08:11] KR-KR}
Rb5 {[%emt 0:15:21]} 43. g4 {[%emt 0:00:00]} a5 {[%emt 0:00:40]} 44. h4 {
[%emt 0:00:06]} Kf7 {[%emt 0:03:07]} 45. Kf4 {[%emt 0:02:28]} Kf6 {[%emt 0:00:
18]} 46. Rd4 {[%emt 0:08:40][%cal Yg4g5] [#]} Rb6 $1 {[%emt 0:00:26]} 47. Ke4 {
[%emt 0:00:48]} Ke6 {[%emt 0:01:15]} 48. g5 {[%emt 0:02:22]} (48. Ra4 $17 {
was necessary.}) 48... hxg5 $19 {[%emt 0:02:13]} 49. hxg5 {[%emt 0:00:02] [#]}
Rb1 $2 {[%emt 0:04:24]} ({Black should try} 49... Rb5 $1 $19 {[%cal Rb5g5]} 50.
Kf4 Rb6) 50. Rd8 {[%emt 0:03:06]} (50. Rc4 $11 {keeps the balance.}) 50... a4 {
[%emt 0:05:28]} (50... Rb4+ $17 51. Kd3 Kf7) 51. Re8+ $1 $11 {[%emt 0:01:44]
The position is equal.} Kf7 {[%emt 0:02:55]} 52. Ra8 {[%emt 0:00:25]} Ra1 {
[%emt 0:03:00]} 53. Kf5 {[%emt 0:04:27]} a3 {[%emt 0:00:00]} 54. Ra7 {[%emt 0:
00:23]} a2 {[%emt 0:04:13]} 55. Rxb7+ {[%emt 0:00:05]} Ke8 {[%emt 0:00:08]} (
55... Kf8 $5 56. Rb8+ Kf7 57. Rb7+ Kg8 58. Rb8+ Kf7 59. Rb7+ $11) 56. Rb8+ $1 {
[%emt 0:00:04]} Kd7 {[%emt 0:00:04]} 57. Rb7+ $1 {[%emt 0:00:05]} Kd6 {[%emt 0:
00:36]} (57... Kc6 $5 58. Ra7 Kb6 59. Rxa2 Rxa2 $11) 58. Rb6+ $1 {[%emt 0:00:
06]} Kd7 {[%emt 0:01:11]} (58... Kd5 $5 59. Rb5+ Kd4 60. Rb4+ Kd3 $11) 59. Rb7+
$1 {[%emt 0:00:05]} Kd6 {[%emt 0:00:04]} (59... Kc6 $5 60. Ra7 Kb6 61. Rxa2
Rxa2 $11) 60. Rb6+ $1 {[%emt 0:00:04]} Kc7 {[%emt 0:00:46]} (60... Kd5 $5 61.
Rb5+ Kc6 $11) 61. Ra6 {[%emt 0:00:07]} Rf1+ {[%emt 0:00:09]} 62. Ke6 {[%emt 0:
00:06] Intending Ra7+ and mate.} a1=Q {[%emt 0:00:18]} 63. Rxa1 {[%emt 0:00:05]
} Rxa1 {[%emt 0:00:09] KR-KP} 64. g6 {[%emt 0:00:04]} Rg1 {[%emt 0:01:04]} 65.
Kf7 {[%emt 0:00:05]} Kd7 {[%emt 0:00:00] ( -> ...Rf1+)} 66. g7 {[%emt 0:00:07]}
Rf1+ {[%emt 0:00:29]} 67. Kg6 $1 {[%emt 0:00:05]} Rg1+ {[%emt 0:00:04]} 68. Kf7
{[%emt 0:00:06]} Rxg7+ {[%emt 0:00:00]} 69. Kxg7 {[%emt 0:00:04] Weighted
Error Value: White=0.17 (very precise) /Black=0.12 (very precise)} 1/2-1/2

[Event "44th Chess Olympiad Open 2022"]
[Site "Chennai"]
[Date "2022.08.03"]
[Round "6.5"]
[White "Piorun, Kacper"]
[Black "Markus, Robert"]
[Result "0-1"]
[WhiteElo "2636"]
[BlackElo "2616"]
[Annotator "TA"]
[PlyCount "80"]
[EventDate "2022.??.??"]
[TimeControl "60"]

{[%evp 13,80,17,6,4,7,10,33,20,24,18,33,31,33,32,46,37,50,23,27,0,12,0,0,9,19,
0,0,0,0,0,0,-4,-9,-11,-20,-29,-29,-28,-13,-172,-60,-117,-80,-133,-121,-124,
-125,-142,-127,-178,-201,-186,-187,-197,-175,-177,-193,-160,-171,-249,-66,-420,
-410,-574,-564,-856,-717,-978,-951]} 1. e4 {[%emt 0:00:03]} e5 {[%emt 0:00:04]}
2. Nf3 {[%emt 0:00:24]} Nf6 {[%emt 0:00:06]} 3. Nxe5 {[%emt 0:00:48]} d6 {
[%emt 0:00:06]} 4. Nf3 {[%emt 0:00:05]} Nxe4 {[%emt 0:00:06]} 5. Bd3 {[%emt 0:
00:00]} Nf6 {[%emt 0:00:25]} 6. O-O {[%emt 0:01:21]} Be7 {[%emt 0:00:04]} 7. h3
{[%emt 0:02:11]} O-O {[%emt 0:00:20]} 8. c3 {[%emt 0:00:06] C42: Petroff
Defence: 3 Nxe5 and unusual White 3rd moves.} Re8 {[%emt 0:06:24]} 9. Bc2 {
[%emt 0:00:14]} Bf8 $5 {[%emt 0:02:34] An interesting side line.} 10. d4 {
[%emt 0:00:07] White is slightly better.} h6 {[%emt 0:00:04] [#]} 11. c4 $146 {
[%emt 0:04:40]} ({Predecessor:} 11. Bf4 Nbd7 12. Nbd2 b5 13. a4 b4 14. c4 a5
15. d5 Nc5 16. Nd4 g6 17. Nc6 {1-0 (67) Chigaev,M (2640)-Ladva,O (2513) Riga
2019}) 11... c6 {[%emt 0:05:43]} 12. Nc3 {[%emt 0:06:35]} Na6 {[%emt 0:00:00]}
13. Bf4 {[%emt 0:04:47]} Nb4 {[%emt 0:05:31]} 14. Bb1 {[%emt 0:01:05]} a5 {
[%emt 0:00:08]} 15. a3 {[%emt 0:08:38]} Na6 {[%emt 0:00:05]} 16. Bc2 {[%emt 0:
00:00]} Nc7 {[%emt 0:09:10]} 17. d5 {[%emt 0:06:34]} cxd5 {[%emt 0:00:01]} 18.
cxd5 {[%emt 0:00:06]} Bd7 {[%emt 0:00:32]} 19. Qd2 {[%emt 0:16:36]} a4 {
[%emt 0:15:40]} 20. Be3 {[%emt 0:00:00]} Ra5 {[%emt 0:06:02][%cal Rc7d5]} 21.
Bb6 {[%emt 0:05:09]} Ra6 {[%emt 0:00:12]} 22. Bd4 {[%emt 0:03:13]} Ncxd5 {
[%emt 0:06:51]} 23. Nxd5 {[%emt 0:00:34]} Nxd5 {[%emt 0:00:05]} 24. Bxg7 {
[%emt 0:00:12]} Bxg7 {[%emt 0:00:05]} 25. Qxd5 {[%emt 0:00:05]} Bc6 {[%emt 0:
00:00] This bishop pair is nice.} 26. Qh5 {[%emt 0:08:46]} (26. Qd3 $11) 26...
Qf6 {[%emt 0:00:43]} ({Better is} 26... Ra5 $1 $19 {[%cal Ra5h5]} 27. Qg4 Qc8)
27. Rae1 {[%emt 0:09:10]} (27. Rab1 $15) 27... Raa8 {[%emt 0:06:14]} (27...
Qxb2 28. Rxe8+ Bxe8 29. Be4 $15) 28. Re3 {[%emt 0:00:00]} (28. Rxe8+ $142 Rxe8
29. Qg4) 28... Qxb2 $17 {[%emt 0:04:22]} 29. Qf5 {[%emt 0:02:46]} Qf6 {[%emt 0:
00:00] Inhibits Nh4. aiming for ...Qxf5.} (29... Rxe3 30. fxe3 Qxa3 31. Nh4
Qxe3+ 32. Kh1 $11) 30. Qh7+ {[%emt 0:01:49]} Kf8 {[%emt 0:00:05]} 31. Nh2 {
[%emt 0:00:46]} (31. Qd3 $17 {might work better.}) 31... Rxe3 $19 {[%emt 0:00:
00]} 32. fxe3 {[%emt 0:00:48]} Qe6 {[%emt 0:04:47]} ({Not} 32... Qc3 33. Ng4
$11 (33. Qg6 $2 Qxe3+ 34. Kh1 Qe7 $19)) 33. Ng4 {[%emt 0:04:43]} Ra5 $40 {
[%emt 0:00:00][%cal Ya8a5,Ya5c5,Yc5g5] White must now prevent ...Rg5. Black
has strong attack. Chess con chili.} 34. Bg6 {[%emt 0:07:16]} Be8 {[%emt 0:00:
00]} 35. Bf5 {[%emt 0:02:21] [#]} Qe7 {[%emt 0:02:33]} 36. Rf3 {[%emt 0:01:17]
[#]} (36. Kh1 $142 Qh4 37. Kh2) 36... Qg5 $2 {[%emt 0:02:15]} (36... Rc5 $1 $19
37. Rf1 (37. Nxh6 $2 Rc1+ 38. Kh2 Qe5+ 39. Rg3 Rh1+ 40. Kxh1 Qxg3 $19) 37... d5
) 37. Be6 $2 {[%emt 0:03:07]} ({White has to play} 37. g3 $1 $15) 37... Rc5 {
[%emt 0:01:34] Strongly threatening ...h5.} 38. Qe4 {[%emt 0:00:54]} Qe7 {
[%emt 0:01:16] Black is clearly winning.} 39. Rf1 {[%emt 0:00:52]} h5 {[%emt 0:
00:26]} 40. Qg6 {[%emt 0:00:38]} Rg5 {[%emt 0:00:00] Weighted Error Value:
White=0.59/Black=0.24 (precise)} 0-1

[Event "44th Chess Olympiad Open 2022"]
[Site "Chennai"]
[Date "2022.08.03"]
[Round "6.5"]
[White "Ivic, Velimir"]
[Black "Wojtaszek, Radoslaw"]
[Result "1/2-1/2"]
[WhiteElo "2581"]
[BlackElo "2708"]
[Annotator "TA"]
[PlyCount "110"]
[EventDate "2022.??.??"]
[TimeControl "60"]

{[%evp 20,110,30,8,18,24,18,17,10,10,12,12,25,12,29,28,32,33,72,0,22,-11,-9,-7,
-27,-17,0,-22,-14,-21,-18,-19,-24,-44,0,8,11,-9,8,11,20,10,6,20,525,21,35,15,
16,15,16,16,53,22,55,50,88,81,81,50,50,50,50,50,88,88,88,88,88,88,88,88,88,88,
88,88,88,88,88,88,88,88,88,88,88,88,88,88,88,88,88,88,88]} 1. e4 {[%emt 0:00:
00]} e5 {[%emt 0:00:06]} 2. Nf3 {[%emt 0:00:07]} Nc6 {[%emt 0:00:05]} 3. Bb5 {
[%emt 0:00:15]} a6 {[%emt 0:00:05]} 4. Ba4 {[%emt 0:00:05]} Nf6 {[%emt 0:00:06]
} 5. O-O {[%emt 0:00:17]} Be7 {[%emt 0:00:03]} 6. Re1 {[%emt 0:00:43]} b5 {
[%emt 0:00:07]} 7. Bb3 {[%emt 0:00:03]} O-O {[%emt 0:00:08]} 8. a4 {[%emt 0:00:
00]} Bb7 {[%emt 0:00:17]} 9. d3 {[%emt 0:00:45]} d6 {[%emt 0:00:06]} 10. Bd2 {
[%emt 0:01:53]} b4 {[%emt 0:01:22]} 11. c3 {[%emt 0:04:02]} Rb8 $1 {[%emt 0:00:
00] is currently scoring better than 11...bxc3. C88: Closed Ruy Lopez:
Anti-Marshall Systems.} 12. cxb4 {[%emt 0:01:59]} Bc8 {[%emt 0:00:09]} 13. b5 {
[%emt 0:04:23]} axb5 {[%emt 0:00:55] The position is equal.} 14. axb5 {[%emt 0:
00:00]} Rxb5 {[%emt 0:00:05] [#]} 15. Bc3 $146 {[%emt 0:02:33]} ({Predecessor:
} 15. h3 Rb8 16. Nc3 Be6 17. Nd5 Bxd5 18. Bxd5 Nxd5 19. exd5 Nb4 20. Qb3 c5 21.
Ra4 {½-½ (52) Vachier Lagrave,M (2763)-Caruana,F (2800) Riga 2021}) 15... Bg4
{[%emt 0:19:47] And now ...Bxf3 would win.} 16. Nbd2 {[%emt 0:05:28]} Rb8 {
[%emt 0:12:06]} 17. h3 {[%emt 0:02:49]} Bh5 {[%emt 0:03:26]} 18. Bc4 {[%emt 0:
00:00]} Nd7 {[%emt 0:08:06]} 19. Nf1 {[%emt 0:07:44] White is more active.} (
19. Qa4 $16 Bxf3 20. Nxf3) 19... Nd4 {[%emt 0:13:26]} 20. Bxd4 {[%emt 0:03:02]
Black must now prevent Bc3.} (20. g4 $5 {[%cal Rg4h5]} Nxf3+ 21. Qxf3 $14)
20... Bxf3 {[%emt 0:00:05]} 21. Qxf3 {[%emt 0:00:31] Strongly threatening Bc3.}
exd4 {[%emt 0:00:04]} 22. Qe2 {[%emt 0:02:28]} Ne5 {[%emt 0:00:21]} 23. Ba2 {
[%emt 0:01:46]} c6 {[%emt 0:00:08]} 24. f4 {[%emt 0:04:35][%cal Yf2f4,Yf4e5]}
Nd7 {[%emt 0:03:01]} 25. Nh2 {[%emt 0:02:52]} Rb4 {[%emt 0:03:08]} 26. Ng4 {
[%emt 0:04:45]} Nf6 {[%emt 0:04:37]} (26... Nc5 $15) 27. Nxf6+ $11 {[%emt 0:11:
47]} Bxf6 {[%emt 0:00:04]} 28. e5 {[%emt 0:00:21]} dxe5 {[%emt 0:00:00]} 29.
fxe5 {[%emt 0:02:07]} Bg5 {[%emt 0:00:05]} 30. Rf1 {[%emt 0:04:19]} Be3+ {
[%emt 0:01:41]} 31. Kh1 {[%emt 0:00:00]} Qe8 $2 {[%emt 0:17:48] [#]} (31... Rb8
$11) 32. Qg4 $2 {[%emt 0:13:03]} ({Not} 32. e6 fxe6 33. Rxf8+ Qxf8 $11) (32.
Rxf7 $1 $18 Kh8 33. e6 Rxf7 34. exf7) 32... Rb7 {[%emt 0:02:43]} (32... Rxb2 $2
{[#]} 33. Bxf7+ $1 Rxf7 34. Rxf7 $18) 33. e6 {[%emt 0:03:25]} fxe6 {[%emt 0:00:
04]} 34. Bxe6+ {[%emt 0:00:00][%cal Ya2e6,Ye6d7,Yd7c6]} Kh8 {[%emt 0:00:01] [#]
} 35. Bd7 $1 $40 {[%emt 0:04:05] White is up to no good.} Qd8 {[%emt 0:00:04]}
(35... Rxf1+ 36. Rxf1) 36. Rxf8+ {[%emt 0:03:46]} Qxf8 {[%emt 0:00:04]} 37. Qf5
{[%emt 0:00:32][%cal Rf5f8]} Qd6 {[%emt 0:05:47] [#]} 38. Bxc6 $1 {[%emt 0:00:
00] White wants to mate with Qc8+.} Rb8 {[%emt 0:00:08] Against Qc8+} 39. Be4 {
[%emt 0:00:30][%csl Ge4][%cal Rf5h7]} g6 {[%emt 0:00:04]} 40. Qf7 {[%emt 0:00:
00] Ra7 would kill now.} Rf8 {[%emt 0:01:58]} 41. Ra8 {[%emt 0:05:51]} Rxa8 {
[%emt 0:00:42]} 42. Bxa8 {[%emt 0:00:06] White is better.} Qf4 {[%emt 0:03:40]}
43. Qxf4 {[%emt 0:10:24]} Bxf4 $16 {[%emt 0:00:04] Endgame KB-KB} 44. Kg1 {
[%emt 0:00:05]} Kg7 {[%emt 0:00:22]} 45. Kf2 {[%emt 0:00:06]} Kf6 {[%emt 0:00:
04]} 46. Kf3 {[%emt 0:00:08]} Ke5 {[%emt 0:00:05]} 47. b4 {[%emt 0:00:00][%cal
Yb2b4,Yb4b5]} Bg5 {[%emt 0:01:08]} 48. b5 {[%emt 0:02:41]} Bd8 {[%emt 0:00:06]}
49. Be4 {[%emt 0:01:09]} Kf6 {[%emt 0:03:26]} 50. Bd5 {[%emt 0:05:18]} Ke5 {
[%emt 0:00:27]} 51. Bg8 {[%emt 0:00:19]} h6 {[%emt 0:00:00]} 52. Bf7 {[%emt 0:
00:25]} g5 {[%emt 0:00:22]} 53. Be8 {[%emt 0:00:25]} Bc7 {[%emt 0:00:16]} 54.
Kg4 {[%emt 0:00:04] aiming for Kh5.} Kf6 {[%emt 0:00:08]} 55. Kh5 {[%emt 0:00:
04]} Kg7 {[%emt 0:00:04] Weighted Error Value: White=0.24 (precise) /Black=0.
28 (precise)} 1/2-1/2

[Event "44th Chess Olympiad Open 2022"]
[Site "Chennai"]
[Date "2022.08.03"]
[Round "6.5"]
[White "Perunovic, Milos"]
[Black "Bartel, Mateusz"]
[Result "1/2-1/2"]
[WhiteElo "2539"]
[BlackElo "2597"]
[Annotator "TA"]
[PlyCount "62"]
[EventDate "2022.??.??"]
[TimeControl "60"]

{[%evp 13,62,0,12,0,14,13,16,12,14,10,12,15,7,22,28,31,54,56,62,63,51,16,20,17,
26,16,17,17,18,13,21,12,13,13,13,22,17,24,13,23,21,21,14,1,1,0,4,0,0,0,13]} 1.
e4 {[%emt 0:00:06]} e6 {[%emt 0:00:05]} 2. d4 {[%emt 0:00:16]} d5 {[%emt 0:00:
00]} 3. Nc3 {[%emt 0:00:32]} Nf6 {[%emt 0:00:07][%cal Yg8f6,Yf6d7,Yd7c5]} 4. e5
{[%emt 0:00:54]} Nfd7 {[%emt 0:00:04]} 5. f4 {[%emt 0:00:09]} c5 {[%emt 0:00:
07]} 6. Nf3 {[%emt 0:00:13]} Nc6 {[%emt 0:00:13]} 7. Be3 {[%emt 0:00:00]} Be7 {
[%emt 0:00:08]} 8. a3 {[%emt 0:10:26] C11: French: Classical System: 4 e5 and
4 Bg5 dxe4.} O-O {[%emt 0:14:28]} 9. dxc5 {[%emt 0:00:00]} Nxc5 {[%emt 0:01:24]
} 10. Be2 {[%emt 0:03:22]} b6 {[%emt 0:01:30]} 11. O-O {[%emt 0:01:45]} Bb7 {
[%emt 0:08:21]} 12. Qe1 {[%emt 0:15:19]} Ne4 {[%emt 0:00:00]} 13. Rd1 {[%emt 0:
05:11] [#] Nxe4 is the strong threat.} Nxc3 {[%emt 0:00:00]} 14. Qxc3 {[%emt 0:
05:09] [#]} Na5 $146 {[%emt 0:07:37]} ({Predecessor:} 14... Rc8 15. Qe1 Bc5 16.
Bd3 h6 17. c3 Bxe3+ 18. Qxe3 Qe7 19. Rde1 Rc7 20. g4 Bc8 {½-½ (30) Zhigalko,
A (2584)-Volkov,S (2592) Bad Wiessee 2015}) 15. Qe1 {[%emt 0:04:06]} Qc8 {
[%emt 0:08:45]} 16. Nd4 {[%emt 0:10:27] Strongly threatening f5. White is more
active.} Nc6 {[%emt 0:00:20]} 17. Bd3 {[%emt 0:00:00]} Nxd4 {[%emt 0:01:59]}
18. Bxd4 {[%emt 0:00:06]} Ba6 {[%emt 0:00:06]} 19. Bxa6 {[%emt 0:06:07]} Qxa6 {
[%emt 0:00:03]} 20. f5 {[%emt 0:00:07]} exf5 {[%emt 0:04:28]} 21. e6 {[%emt 0:
01:11]} Qc8 {[%emt 0:04:46]} 22. Rxf5 {[%emt 0:00:00]} Qxc2 {[%emt 0:12:39]}
23. Rxd5 {[%emt 0:05:17]} fxe6 {[%emt 0:00:00]} 24. Qxe6+ $40 {[%emt 0:13:43]
Black needs to defend precisely.} Rf7 $1 {[%emt 0:05:33]} 25. Rf1 {[%emt 0:06:
16]} Qg6 {[%emt 0:00:00]} 26. Qxg6 {[%emt 0:00:32]} hxg6 {[%emt 0:00:00]} 27.
Rxf7 {[%emt 0:02:00] The position is equal.} Kxf7 $11 {[%emt 0:00:00] KRB-KRB}
28. Kf2 {[%emt 0:01:14]} Ke6 {[%emt 0:00:00]} 29. Re5+ {[%emt 0:00:07]} Kf7 {
[%emt 0:00:00]} 30. Rd5 {[%emt 0:00:11]} Ke6 {[%emt 0:00:00]} 31. Re5+ {
[%emt 0:00:06]} Kf7 {[%emt 0:00:00] Weighted Error Value: White=0.04 (flawless)
/Black=0.03 (flawless)} 1/2-1/2

[Event "44th Chess Olympiad Open 2022"]
[Site "Chennai"]
[Date "2022.08.03"]
[Round "6.6"]
[White "Giri, Anish"]
[Black "Jobava, Baadur"]
[Result "1-0"]
[WhiteElo "2760"]
[BlackElo "2585"]
[Annotator "TA"]
[PlyCount "63"]
[EventDate "2022.??.??"]
[TimeControl "60"]

{[%evp 20,63,49,36,43,38,29,39,35,35,44,35,41,24,22,38,62,47,54,54,101,99,116,
93,156,154,142,141,470,479,583,389,711,462,735,338,391,397,403,365,399,402,397,
390,377,371]} 1. d4 {[%emt 0:00:03]} Nf6 {[%emt 0:00:24]} 2. c4 {[%emt 0:00:05]
} c5 {[%emt 0:01:09]} 3. d5 {[%emt 0:00:11]} g6 {[%emt 0:00:07]} 4. Nc3 {
[%emt 0:00:08]} Bg7 {[%emt 0:00:07]} 5. e4 {[%emt 0:00:07]} d6 {[%emt 0:00:33]}
6. Nf3 {[%emt 0:00:39]} O-O {[%emt 0:00:19]} 7. Be2 {[%emt 0:00:07]} e6 {
[%emt 0:00:38]} 8. O-O {[%emt 0:00:10]} exd5 {[%emt 0:00:03]} 9. exd5 {[%emt 0:
00:00]} Bg4 {[%emt 0:05:55]} 10. h3 {[%emt 0:02:16]} Bxf3 {[%emt 0:01:12]} 11.
Bxf3 {[%emt 0:00:04]} ({Much weaker is} 11. gxf3 Re8 $11) 11... Nbd7 {[%emt 0:
00:00][%cal Yb8d7,Yd7e5,Ye5f7] E91: King's Indian: Classical: 6 Be2, unusual
replies including 6...c5 and 6...Bg4.} 12. Bf4 {[%emt 0:02:26]} Ne8 {[%emt 0:
00:14]} 13. Qd2 {[%emt 0:04:59]} Ne5 {[%emt 0:05:16] White is slightly better.}
14. Be2 $1 {[%emt 0:00:16]} f5 {[%emt 0:02:49]} 15. Rfe1 {[%emt 0:00:00]} Nf7 {
[%emt 0:04:45] [#]} 16. Rab1 $5 $146 {[%emt 0:05:31] An interesting novelty.} (
{Predecessor:} 16. Be3 g5 17. f4 h6 18. Rf1 Qf6 19. Rae1 Qg6 20. Bd3 g4 21.
hxg4 Qxg4 22. Bf2 {0-1 (42) Van der Werf,M (2389)-Korchmar, V (2450) Chess.com
INT 2022}) 16... g5 {[%emt 0:05:19]} 17. Bh2 {[%emt 0:01:32]} Be5 {[%emt 0:00:
28]} 18. Bh5 {[%emt 0:07:44] And now Bxf7+ would win.} Bxh2+ {[%emt 0:00:20]}
19. Kxh2 {[%emt 0:00:06]} Ng7 {[%emt 0:01:15] Inhibits Re6.} (19... Ne5 $14 {
feels stronger.}) 20. Bxf7+ $16 {[%emt 0:00:16]} Rxf7 {[%emt 0:00:00] [#]} 21.
Re6 $1 {[%emt 0:03:33] Prevents Qf6.} Nxe6 {[%emt 0:02:34]} ({Better is} 21...
Rf6) 22. dxe6 {[%emt 0:00:16]} Rg7 {[%emt 0:00:03]} 23. Nd5 {[%emt 0:04:08]
Inhibits Qf6. Black must now prevent Re1. White is more active.} g4 $2 {
[%emt 0:04:20] [#] This costs Black the game.} (23... Qf8 $16 {is a better
chance.} 24. Re1 Re8) 24. Re1 $1 $18 {[%emt 0:03:21] aiming for e7.} Rg6 {
[%emt 0:09:54]} 25. Qf4 {[%emt 0:07:42]} gxh3 $2 {[%emt 0:13:46]} (25... Kg7
26. Qxf5 Qf8 27. hxg4 Re8) 26. g3 {[%emt 0:01:35] e7 is the strong threat.} Rc8
{[%emt 0:21:15]} (26... Kg7 $142 27. b4 (27. Qxf5 Qf8 $16) 27... cxb4 28. Qd4+
(28. Qxf5 Qf8 $11) 28... Kg8) 27. Qxf5 {[%emt 0:02:33]} (27. e7 $142 Qd7 28.
Kxh3) 27... Qf8 {[%emt 0:00:28]} 28. Qxf8+ {[%emt 0:05:33] White is winning.}
Kxf8 {[%emt 0:04:52]} 29. f4 {[%emt 0:00:10][%cal Yf2f4,Yf4f5]} Re8 {[%emt 0:
00:38]} 30. f5 {[%emt 0:00:07]} Rg5 {[%emt 0:00:04]} 31. Rf1 {[%emt 0:00:32]}
Rg4 {[%emt 0:03:27]} 32. Rf4 {[%emt 0:02:34] Weighted Error Value: White=0.40/
Black=0.40} 1-0